[Event "GrandPrix_29.05"]
[Site "Chess.com"]
[Date "2020.05.29"]
[Round "2"]
[White "DaggiGretarsson"]
[Black "Anton_Demchenko"]
[Result "0-1"]
[WhiteElo "2188"]
[BlackElo "2578"]
[TimeControl "600+2"]
[EndTime "9:56:27 PDT"]
[Termination "Anton_Demchenko won by resignation"]

1. d4 {[%clk 0:09:58.8]} 1... Nf6 {[%clk 0:09:57.8]} 2. c4 {[%clk 0:09:59.1]}
2... d6 {[%clk 0:09:58.6]} 3. Nc3 {[%clk 0:09:58.4]} 3... e5 {[%clk 0:09:59]} 4.
Nf3 {[%clk 0:09:58.7]} 4... Nc6 {[%clk 0:09:59.7]} 5. d5 {[%clk 0:09:32.4]} 5...
Ne7 {[%clk 0:09:59.1]} 6. h3 {[%clk 0:09:27.4]} 6... Ng6 {[%clk 0:09:50.1]} 7.
e4 {[%clk 0:09:16.5]} 7... Be7 {[%clk 0:09:50.4]} 8. Be3 {[%clk 0:08:45.2]} 8...
O-O {[%clk 0:09:47]} 9. g3 {[%clk 0:08:28.7]} 9... c6 {[%clk 0:09:44.5]} 10. Bd3
{[%clk 0:07:52.6]} 10... Bd7 {[%clk 0:09:41.3]} 11. Kf1 {[%clk 0:07:51.1]} 11...
cxd5 {[%clk 0:09:14.5]} 12. cxd5 {[%clk 0:07:44.4]} 12... b5 {[%clk 0:09:13.3]}
13. Kg2 {[%clk 0:07:36]} 13... b4 {[%clk 0:08:59.1]} 14. Nb1 {[%clk 0:07:05.8]}
14... Qb8 {[%clk 0:07:17.6]} 15. Nbd2 {[%clk 0:06:58.4]} 15... Bd8 {[%clk
0:06:57.7]} 16. Nc4 {[%clk 0:06:46.4]} 16... Bb5 {[%clk 0:06:50.5]} 17. Nfd2
{[%clk 0:06:43.8]} 17... Ne7 {[%clk 0:06:16.3]} 18. Qb3 {[%clk 0:05:57.5]} 18...
a5 {[%clk 0:05:26.4]} 19. a3 {[%clk 0:04:56]} 19... Nd7 {[%clk 0:05:21.7]} 20.
axb4 {[%clk 0:04:49.9]} 20... a4 {[%clk 0:05:22.9]} 21. Qa2 {[%clk 0:03:38.2]}
21... Kh8 {[%clk 0:04:54.1]} 22. f3 {[%clk 0:02:18.6]} 22... f5 {[%clk
0:04:49.1]} 23. Bf2 {[%clk 0:02:19.1]} 23... Nf6 {[%clk 0:04:06.8]} 24. b3
{[%clk 0:01:54]} 24... fxe4 {[%clk 0:03:53.2]} 25. fxe4 {[%clk 0:01:53.8]} 25...
Ng6 {[%clk 0:03:13.5]} 26. bxa4 {[%clk 0:01:20]} 26... Rxa4 {[%clk 0:03:13]} 27.
Qb3 {[%clk 0:01:19.6]} 27... Rxa1 {[%clk 0:03:13.1]} 28. Rxa1 {[%clk 0:01:19.9]}
28... Nh5 {[%clk 0:03:11.5]} 29. Be3 {[%clk 0:01:20.5]} 29... Bd7 {[%clk
0:02:35.3]} 30. Rf1 {[%clk 0:01:06.3]} 30... Nf6 {[%clk 0:01:55.1]} 31. Na5
{[%clk 0:00:53.8]} 31... Qc8 {[%clk 0:01:46.3]} 32. Rh1 {[%clk 0:00:46.3]} 32...
Be7 {[%clk 0:01:23]} 33. Qc4 {[%clk 0:00:41.3]} 33... Qe8 {[%clk 0:01:24.2]} 34.
Nc6 {[%clk 0:00:39]} 34... Nh5 {[%clk 0:01:25.4]} 35. Rf1 {[%clk 0:00:20.1]}
35... Ngf4+ {[%clk 0:01:16.5]} 36. gxf4 {[%clk 0:00:20.2]} 36... exf4 {[%clk
0:01:18.4]} 37. Bf2 {[%clk 0:00:17.6]} 37... f3+ {[%clk 0:01:13.4]} 38. Kh2
{[%clk 0:00:15.7]} 38... Bg5 {[%clk 0:01:10.1]} 39. Nxf3 {[%clk 0:00:04.9]}
39... Rxf3 {[%clk 0:01:09.9]} 40. Bd4 {[%clk 0:00:02.8]} 40... Rxh3+ {[%clk
0:01:01.5]} 41. Kg2 {[%clk 0:00:03.6]} 41... Nf4+ {[%clk 0:01:01]} 42. Rxf4
{[%clk 0:00:03.4]} 42... Bxf4 {[%clk 0:01:02.1]} 43. e5 {[%clk 0:00:04.2]} 43...
Qh5 {[%clk 0:00:58.6]} 44. e6 {[%clk 0:00:02.5]} 44... Qf3+ {[%clk 0:00:59.5]}
0-1

[Event "GrandPrix_29.05"]
[Site "Chess.com"]
[Date "2020.05.29"]
[Round "2"]
[White "tacticthunder"]
[Black "metra93"]
[Result "0-1"]
[WhiteElo "2188"]
[BlackElo "2572"]
[TimeControl "600+2"]
[EndTime "9:56:28 PDT"]
[Termination "metra93 won on time"]

1. e4 {[%clk 0:09:51]} 1... e6 {[%clk 0:09:59.9]} 2. d4 {[%clk 0:09:48]} 2... d5
{[%clk 0:10:00.8]} 3. Nc3 {[%clk 0:09:47.4]} 3... Bb4 {[%clk 0:10:01.4]} 4. e5
{[%clk 0:09:47.8]} 4... c5 {[%clk 0:10:01.6]} 5. Bd2 {[%clk 0:09:47.9]} 5... Nc6
{[%clk 0:09:59.3]} 6. Nb5 {[%clk 0:09:46.4]} 6... Bxd2+ {[%clk 0:10:01.2]} 7.
Qxd2 {[%clk 0:09:48.3]} 7... Nxd4 {[%clk 0:10:03]} 8. Nxd4 {[%clk 0:09:45.1]}
8... cxd4 {[%clk 0:10:04.9]} 9. Nf3 {[%clk 0:09:41.9]} 9... Ne7 {[%clk
0:10:02.7]} 10. Nxd4 {[%clk 0:09:34.5]} 10... O-O {[%clk 0:09:36.8]} 11. c3
{[%clk 0:09:10.6]} 11... Bd7 {[%clk 0:09:33]} 12. Bd3 {[%clk 0:07:57.8]} 12...
Nc6 {[%clk 0:09:29]} 13. Nf3 {[%clk 0:07:44.6]} 13... f6 {[%clk 0:08:31.9]} 14.
exf6 {[%clk 0:07:41.8]} 14... Rxf6 {[%clk 0:08:11.2]} 15. O-O-O {[%clk 0:07:36]}
15... Qa5 {[%clk 0:06:49.9]} 16. Kb1 {[%clk 0:07:33.4]} 16... b5 {[%clk
0:06:29.5]} 17. Rhe1 {[%clk 0:06:55.7]} 17... Raf8 {[%clk 0:05:49.3]} 18. Re2
{[%clk 0:06:37.1]} 18... Qb6 {[%clk 0:05:07.2]} 19. Ng5 {[%clk 0:05:05.7]} 19...
g6 {[%clk 0:04:48.2]} 20. f4 {[%clk 0:04:51.3]} 20... b4 {[%clk 0:04:06.6]} 21.
c4 {[%clk 0:03:52.2]} 21... b3 {[%clk 0:04:00.3]} 22. cxd5 {[%clk 0:03:24.8]}
22... exd5 {[%clk 0:03:30.2]} 23. Bc4 {[%clk 0:03:15.9]} 23... Bf5+ {[%clk
0:03:16.9]} 24. Bd3 {[%clk 0:02:53.4]} 24... Bg4 {[%clk 0:03:02.5]} 25. a3
{[%clk 0:01:43.2]} 25... Rxf4 {[%clk 0:02:14.5]} 26. Nf3 {[%clk 0:00:10]} 26...
Bxf3 {[%clk 0:01:19.5]} 27. gxf3 {[%clk 0:00:11.9]} 27... Nd4 {[%clk 0:01:20.7]}
28. Re7 {[%clk 0:00:06.9]} 28... Qc5 {[%clk 0:01:13.5]} 29. Rd7 {[%clk
0:00:02.2]} 29... Rxf3 {[%clk 0:00:49.5]} 30. Rc1 {[%clk 0:00:02.8]} 30... Qb6
{[%clk 0:00:20.5]} 31. Qh6 {[%clk 0:00:02.5]} 31... R3f7 {[%clk 0:00:08.3]} 32.
Rxf7 {[%clk 0:00:03.2]} 32... Kxf7 {[%clk 0:00:09.9]} 0-1

[Event "GrandPrix_29.05"]
[Site "Chess.com"]
[Date "2020.05.29"]
[Round "2"]
[White "Arm-Akiba"]
[Black "VitaliyBernadskiy"]
[Result "1-0"]
[WhiteElo "2799"]
[BlackElo "2363"]
[TimeControl "600+2"]
[EndTime "9:56:33 PDT"]
[Termination "Arm-Akiba won on time"]

1. d4 {[%clk 0:10:01.9]} 1... Nf6 {[%clk 0:09:56.3]} 2. c4 {[%clk 0:10:02.1]}
2... g6 {[%clk 0:09:57.3]} 3. Nc3 {[%clk 0:10:01.1]} 3... Bg7 {[%clk 0:09:58.3]}
4. e4 {[%clk 0:10:01.8]} 4... O-O {[%clk 0:09:58.1]} 5. Nf3 {[%clk 0:10:02.9]}
5... d6 {[%clk 0:09:59.3]} 6. Be2 {[%clk 0:10:04.3]} 6... e5 {[%clk 0:09:59.9]}
7. O-O {[%clk 0:10:05]} 7... Nc6 {[%clk 0:09:54.8]} 8. d5 {[%clk 0:10:05.8]}
8... Ne7 {[%clk 0:09:56]} 9. b4 {[%clk 0:10:06.8]} 9... a5 {[%clk 0:09:53.9]}
10. bxa5 {[%clk 0:10:01.4]} 10... c5 {[%clk 0:09:32.7]} 11. a4 {[%clk
0:09:56.5]} 11... Rxa5 {[%clk 0:09:20.9]} 12. Ra3 {[%clk 0:09:55.1]} 12... Nh5
{[%clk 0:09:06.4]} 13. Nb5 {[%clk 0:09:40.9]} 13... Ra6 {[%clk 0:08:53.6]} 14.
g3 {[%clk 0:09:18.7]} 14... Nf6 {[%clk 0:08:47.1]} 15. Qc2 {[%clk 0:09:07.7]}
15... Bg4 {[%clk 0:08:43.8]} 16. Nh4 {[%clk 0:08:57.1]} 16... Bxe2 {[%clk
0:08:23.1]} 17. Qxe2 {[%clk 0:08:57.6]} 17... Qd7 {[%clk 0:08:13.4]} 18. Bd2
{[%clk 0:08:46.4]} 18... Rfa8 {[%clk 0:08:00.9]} 19. Rfa1 {[%clk 0:08:41.7]}
19... Ne8 {[%clk 0:07:38.9]} 20. Kg2 {[%clk 0:08:20.4]} 20... f5 {[%clk
0:07:34.1]} 21. exf5 {[%clk 0:07:16.9]} 21... gxf5 {[%clk 0:07:24.6]} 22. Bg5
{[%clk 0:07:16.9]} 22... Ng6 {[%clk 0:07:12.1]} 23. R1a2 {[%clk 0:06:02.7]}
23... Nxh4+ {[%clk 0:06:48.2]} 24. Bxh4 {[%clk 0:06:04.6]} 24... h6 {[%clk
0:06:47.1]} 25. h3 {[%clk 0:05:41.7]} 25... Nc7 {[%clk 0:05:24.5]} 26. a5 {[%clk
0:05:27.3]} 26... Qf7 {[%clk 0:04:46.7]} 27. Nxc7 {[%clk 0:05:13.6]} 27... Qxc7
{[%clk 0:04:47.2]} 28. Qb2 {[%clk 0:05:02.1]} 28... e4 {[%clk 0:04:23.3]} 29.
Bf6 {[%clk 0:04:59.9]} 29... Qf7 {[%clk 0:04:05.6]} 30. Bxg7 {[%clk 0:04:53]}
30... Qxg7 {[%clk 0:04:07.5]} 31. Qc1 {[%clk 0:04:18.7]} 31... Qg5 {[%clk
0:04:02.2]} 32. Qb1 {[%clk 0:04:10]} 32... Qg7 {[%clk 0:03:30.8]} 33. Rb3 {[%clk
0:04:08.8]} 33... R8a7 {[%clk 0:02:26.3]} 34. Rab2 {[%clk 0:04:09]} 34... Rxa5
{[%clk 0:02:14.4]} 35. Rxb7 {[%clk 0:04:09.6]} 35... Qc3 {[%clk 0:02:07.1]} 36.
Rb8+ {[%clk 0:03:49.9]} 36... Kg7 {[%clk 0:02:08.1]} 37. R2b7+ {[%clk 0:03:51]}
37... Kf6 {[%clk 0:02:05.1]} 38. Rb3 {[%clk 0:03:18]} 38... Qxc4 {[%clk
0:01:25.8]} 39. Qb2+ {[%clk 0:02:41.1]} 39... Qd4 {[%clk 0:01:26.3]} 40. Qc1
{[%clk 0:02:42]} 40... Kg6 {[%clk 0:00:42.3]} 41. Rg8+ {[%clk 0:02:06.4]} 41...
Rg7 {[%clk 0:00:30.7]} 42. Rh8 {[%clk 0:01:38]} 42... Rh7 {[%clk 0:00:31.1]} 43.
Rxh7 {[%clk 0:01:29.9]} 43... Kxh7 {[%clk 0:00:33]} 44. Rb7+ {[%clk 0:01:27.7]}
44... Kg6 {[%clk 0:00:32.7]} 45. Qf4 {[%clk 0:01:20.5]} 45... Ra6 {[%clk
0:00:06.9]} 46. g4 {[%clk 0:01:08.6]} 46... Qe5 {[%clk 0:00:08.1]} 47. gxf5+
{[%clk 0:01:07.5]} 1-0

[Event "GrandPrix_29.05"]
[Site "Chess.com"]
[Date "2020.05.29"]
[Round "2"]
[White "iceboy88"]
[Black "Malysch"]
[Result "1-0"]
[WhiteElo "2582"]
[BlackElo "2195"]
[TimeControl "600+2"]
[EndTime "9:56:33 PDT"]
[Termination "iceboy88 won on time"]

1. Nf3 {[%clk 0:10:01.9]} 1... d5 {[%clk 0:09:59.7]} 2. g3 {[%clk 0:10:02.6]}
2... c6 {[%clk 0:09:59.5]} 3. Bg2 {[%clk 0:10:02.4]} 3... Bg4 {[%clk 0:10:00.8]}
4. O-O {[%clk 0:10:01.6]} 4... Nd7 {[%clk 0:10:00.1]} 5. d3 {[%clk 0:09:59]}
5... Ngf6 {[%clk 0:09:57]} 6. h3 {[%clk 0:09:55.3]} 6... Bh5 {[%clk 0:09:57]} 7.
Qe1 {[%clk 0:09:52.1]} 7... e5 {[%clk 0:09:57]} 8. e4 {[%clk 0:09:53.2]} 8...
Bd6 {[%clk 0:09:57]} 9. exd5 {[%clk 0:09:14.2]} 9... Nxd5 {[%clk 0:07:02.8]} 10.
c4 {[%clk 0:06:43.5]} 10... Nb4 {[%clk 0:06:22.3]} 11. Qc3 {[%clk 0:06:42.5]}
11... Bg6 {[%clk 0:06:09.8]} 12. Rd1 {[%clk 0:05:05.5]} 12... Qe7 {[%clk
0:05:53.8]} 13. a3 {[%clk 0:04:58.8]} 13... Nxd3 {[%clk 0:05:51.4]} 14. Bg5
{[%clk 0:03:25.8]} 14... f6 {[%clk 0:05:46.3]} 15. Be3 {[%clk 0:03:09.6]} 15...
N3c5 {[%clk 0:03:37.5]} 16. Nh4 {[%clk 0:03:03.1]} 16... a5 {[%clk 0:03:11.7]}
17. b4 {[%clk 0:02:39.8]} 17... axb4 {[%clk 0:02:31.1]} 18. axb4 {[%clk
0:02:38.5]} 18... Rxa1 {[%clk 0:02:33]} 19. Qxa1 {[%clk 0:02:36.3]} 19... Na6
{[%clk 0:02:33.6]} 20. b5 {[%clk 0:02:12.8]} 20... cxb5 {[%clk 0:01:58.8]} 21.
cxb5 {[%clk 0:02:09.6]} 21... Nac5 {[%clk 0:01:43.1]} 22. Nxg6 {[%clk
0:01:58.7]} 22... hxg6 {[%clk 0:01:43.2]} 23. Qa8+ {[%clk 0:01:36.9]} 23... Bb8
{[%clk 0:01:39]} 24. Bxb7 {[%clk 0:00:57.6]} 24... O-O {[%clk 0:01:30.6]} 25.
Bc6 {[%clk 0:00:36.3]} 25... Bd6 {[%clk 0:00:36.7]} 26. Qa2+ {[%clk 0:00:36.7]}
26... Kh7 {[%clk 0:00:36.8]} 27. Qd5 {[%clk 0:00:33.9]} 27... Bc7 {[%clk
0:00:03.2]} 28. Bxd7 {[%clk 0:00:28.6]} 28... Bb6 {[%clk 0:00:04.3]} 29. Bxc5
{[%clk 0:00:18.9]} 29... Bxc5 {[%clk 0:00:04.2]} 30. Qc6 {[%clk 0:00:13.3]}
30... Rd8 {[%clk 0:00:04.2]} 31. Rd5 {[%clk 0:00:13.7]} 31... Ba7 {[%clk
0:00:03.2]} 32. Nd2 {[%clk 0:00:12.9]} 32... Qb4 {[%clk 0:00:03.5]} 33. Qc4
{[%clk 0:00:08.9]} 33... Qa3 {[%clk 0:00:03.4]} 34. Nb3 {[%clk 0:00:08.5]} 34...
Qb2 {[%clk 0:00:02.3]} 35. Rd2 {[%clk 0:00:09.5]} 1-0

[Event "GrandPrix_29.05"]
[Site "Chess.com"]
[Date "2020.05.29"]
[Round "2"]
[White "faraone99"]
[Black "moro182"]
[Result "0-1"]
[WhiteElo "2093"]
[BlackElo "2549"]
[TimeControl "600+2"]
[EndTime "9:56:37 PDT"]
[Termination "moro182 won by checkmate"]

1. e4 {[%clk 0:09:59.9]} 1... e5 {[%clk 0:09:58]} 2. Nf3 {[%clk 0:10:00.8]} 2...
Nc6 {[%clk 0:09:57.9]} 3. Bb5 {[%clk 0:10:01.5]} 3... a6 {[%clk 0:09:58]} 4. Ba4
{[%clk 0:10:02.1]} 4... Nge7 {[%clk 0:09:59.1]} 5. c3 {[%clk 0:09:50.7]} 5... g6
{[%clk 0:09:59.8]} 6. O-O {[%clk 0:09:51.5]} 6... Bg7 {[%clk 0:09:59.9]} 7. d4
{[%clk 0:09:52.3]} 7... exd4 {[%clk 0:10:01.8]} 8. cxd4 {[%clk 0:09:53.5]} 8...
O-O {[%clk 0:10:02.9]} 9. Re1 {[%clk 0:09:46.8]} 9... d6 {[%clk 0:10:01.3]} 10.
h3 {[%clk 0:09:46.8]} 10... b5 {[%clk 0:10:01.9]} 11. Bb3 {[%clk 0:09:47.3]}
11... Bb7 {[%clk 0:10:02.8]} 12. Nc3 {[%clk 0:09:07.1]} 12... Na5 {[%clk
0:10:01.4]} 13. Bc2 {[%clk 0:09:06.5]} 13... Qd7 {[%clk 0:10:02.7]} 14. Bf4
{[%clk 0:08:43.1]} 14... Rad8 {[%clk 0:09:36.7]} 15. Rb1 {[%clk 0:08:06.3]}
15... h6 {[%clk 0:08:56]} 16. b3 {[%clk 0:06:55.5]} 16... c5 {[%clk 0:07:32]}
17. Qd2 {[%clk 0:06:47.1]} 17... g5 {[%clk 0:07:18.7]} 18. Be3 {[%clk
0:06:26.5]} 18... c4 {[%clk 0:06:27.1]} 19. Ne2 {[%clk 0:04:52.6]} 19... Qc7
{[%clk 0:05:52.6]} 20. b4 {[%clk 0:04:45.1]} 20... Nac6 {[%clk 0:05:51.2]} 21.
Ng3 {[%clk 0:04:46]} 21... Bc8 {[%clk 0:05:27.5]} 22. Nh5 {[%clk 0:04:19.6]}
22... Ng6 {[%clk 0:05:19.7]} 23. Nxg7 {[%clk 0:04:07.5]} 23... Kxg7 {[%clk
0:05:21.6]} 24. d5 {[%clk 0:04:08.6]} 24... Nce5 {[%clk 0:05:14.5]} 25. Nxe5
{[%clk 0:04:09.2]} 25... dxe5 {[%clk 0:05:13.4]} 26. Qc3 {[%clk 0:04:05]} 26...
f6 {[%clk 0:05:01.2]} 27. a4 {[%clk 0:04:03.9]} 27... Bd7 {[%clk 0:04:58.1]} 28.
Ra1 {[%clk 0:04:02]} 28... Nf4 {[%clk 0:04:26.3]} 29. h4 {[%clk 0:03:16.7]}
29... Rf7 {[%clk 0:04:06.8]} 30. hxg5 {[%clk 0:03:02]} 30... hxg5 {[%clk
0:04:02.1]} 31. g3 {[%clk 0:03:03.1]} 31... Ng6 {[%clk 0:03:49.6]} 32. axb5
{[%clk 0:02:59]} 32... Bxb5 {[%clk 0:03:38.8]} 33. Kg2 {[%clk 0:02:59.7]} 33...
Rh8 {[%clk 0:03:30.4]} 34. Rh1 {[%clk 0:02:59.6]} 34... Rff8 {[%clk 0:03:31.5]}
35. Rxh8 {[%clk 0:02:29]} 35... Rxh8 {[%clk 0:03:33.4]} 36. Rh1 {[%clk
0:02:30.1]} 36... Rxh1 {[%clk 0:03:00.4]} 37. Kxh1 {[%clk 0:02:31.9]} 37... Qd7
{[%clk 0:03:02]} 38. Kg2 {[%clk 0:02:30.5]} 38... Qg4 {[%clk 0:03:02.5]} 39. Bc5
{[%clk 0:01:41]} 39... Nf4+ {[%clk 0:02:41.9]} 40. Kf1 {[%clk 0:01:41.4]} 40...
Nd3 {[%clk 0:01:37.2]} 41. Be3 {[%clk 0:01:21.3]} 41... Qxe4 {[%clk 0:01:14.6]}
42. Ke2 {[%clk 0:00:43.2]} 42... Qxd5 {[%clk 0:01:09.3]} 43. Qa3 {[%clk
0:00:17.7]} 43... c3 {[%clk 0:00:43.4]} 44. Qxc3 {[%clk 0:00:17.5]} 44... Nf4+
{[%clk 0:00:29.9]} 45. Ke1 {[%clk 0:00:17.8]} 45... Ng2# {[%clk 0:00:31]} 0-1

[Event "GrandPrix_29.05"]
[Site "Chess.com"]
[Date "2020.05.29"]
[Round "2"]
[White "BashirliN"]
[Black "BMOchsner"]
[Result "0-1"]
[WhiteElo "2167"]
[BlackElo "2108"]
[TimeControl "600+2"]
[EndTime "9:56:42 PDT"]
[Termination "BMOchsner won by resignation"]

1. e4 {[%clk 0:08:33.1]} 1... c5 {[%clk 0:09:49.4]} 2. Nf3 {[%clk 0:08:32.7]}
2... d6 {[%clk 0:09:50.3]} 3. Nc3 {[%clk 0:08:27.9]} 3... Nf6 {[%clk 0:09:41.9]}
4. e5 {[%clk 0:08:28]} 4... dxe5 {[%clk 0:09:42.4]} 5. Nxe5 {[%clk 0:08:29.9]}
5... a6 {[%clk 0:09:39.2]} 6. a4 {[%clk 0:08:19.7]} 6... e6 {[%clk 0:08:01.4]}
7. g3 {[%clk 0:07:41.5]} 7... Qc7 {[%clk 0:07:49.1]} 8. Nc4 {[%clk 0:07:39.3]}
8... Bd7 {[%clk 0:07:20.7]} 9. d3 {[%clk 0:07:11.2]} 9... Bc6 {[%clk 0:06:57.7]}
10. Bf4 {[%clk 0:06:57.6]} 10... Qd8 {[%clk 0:05:27]} 11. Rg1 {[%clk 0:05:43.1]}
11... Be7 {[%clk 0:05:11]} 12. Bg2 {[%clk 0:05:16.2]} 12... Bxg2 {[%clk
0:05:02.7]} 13. Rxg2 {[%clk 0:05:18.1]} 13... O-O {[%clk 0:04:51.1]} 14. Bxb8
{[%clk 0:04:50.1]} 14... Rxb8 {[%clk 0:04:45.3]} 15. a5 {[%clk 0:04:52]} 15...
Nd5 {[%clk 0:04:34.6]} 16. Ne4 {[%clk 0:04:22.1]} 16... Nb4 {[%clk 0:04:06.6]}
17. Qe2 {[%clk 0:04:12.6]} 17... Nc6 {[%clk 0:03:29.4]} 18. c3 {[%clk
0:04:12.8]} 18... Qc7 {[%clk 0:03:20.8]} 19. g4 {[%clk 0:04:05.3]} 19... Rbd8
{[%clk 0:03:05.5]} 20. g5 {[%clk 0:04:01.3]} 20... Ne5 {[%clk 0:01:36.1]} 21.
Nxe5 {[%clk 0:02:56.7]} 21... Qxe5 {[%clk 0:01:36.5]} 22. Kf1 {[%clk 0:02:25.4]}
22... Kh8 {[%clk 0:01:09.2]} 23. Rg3 {[%clk 0:02:20.5]} 23... Qf5 {[%clk
0:01:02.3]} 24. Qf3 {[%clk 0:02:13.5]} 24... Rd5 {[%clk 0:01:00.7]} 25. Qxf5
{[%clk 0:02:07.9]} 25... exf5 {[%clk 0:01:00.6]} 26. Nd2 {[%clk 0:02:09]} 26...
f4 {[%clk 0:00:59.1]} 27. Rg4 {[%clk 0:01:33]} 27... Bxg5 {[%clk 0:00:49.5]} 28.
Nf3 {[%clk 0:01:19.4]} 28... Bh6 {[%clk 0:00:41.3]} 29. d4 {[%clk 0:01:20.7]}
29... cxd4 {[%clk 0:00:37.9]} 30. Nxd4 {[%clk 0:01:22.6]} 30... g6 {[%clk
0:00:29.3]} 31. Ra4 {[%clk 0:01:21.9]} 31... Rfd8 {[%clk 0:00:19.1]} 32. Rb4
{[%clk 0:01:22.4]} 32... R8d7 {[%clk 0:00:20.2]} 33. Rc4 {[%clk 0:01:18.2]}
33... Kg7 {[%clk 0:00:06.9]} 34. b4 {[%clk 0:01:15.3]} 34... Bg5 {[%clk
0:00:06.3]} 35. Kg2 {[%clk 0:01:06.6]} 35... h5 {[%clk 0:00:06.8]} 36. Rxg5
{[%clk 0:01:06.1]} 36... Rxg5+ {[%clk 0:00:07.9]} 37. Kf3 {[%clk 0:01:08]} 37...
Rgd5 {[%clk 0:00:08]} 38. Kxf4 {[%clk 0:01:08.8]} 38... Re7 {[%clk 0:00:08.4]}
39. Rc8 {[%clk 0:01:07]} 39... Rdd7 {[%clk 0:00:09.5]} 40. h4 {[%clk 0:01:05.6]}
40... Rc7 {[%clk 0:00:10.6]} 41. Rxc7 {[%clk 0:00:50.9]} 41... Rxc7 {[%clk
0:00:12.5]} 42. Ne2 {[%clk 0:00:52.8]} 42... Rc4+ {[%clk 0:00:13.6]} 43. Ke5
{[%clk 0:00:48.9]} 43... Rxh4 {[%clk 0:00:14]} 44. Kd6 {[%clk 0:00:50.4]} 44...
Rh2 {[%clk 0:00:15.1]} 45. Kc7 {[%clk 0:00:50.3]} 45... Rxf2 {[%clk 0:00:16.3]}
46. Nd4 {[%clk 0:00:50.8]} 46... h4 {[%clk 0:00:17]} 47. b5 {[%clk 0:00:52.2]}
47... axb5 {[%clk 0:00:17.7]} 48. Kxb7 {[%clk 0:00:52.4]} 48... h3 {[%clk
0:00:19]} 49. a6 {[%clk 0:00:54.3]} 49... h2 {[%clk 0:00:19.7]} 50. a7 {[%clk
0:00:56.2]} 50... h1=Q+ {[%clk 0:00:21]} 51. Nc6 {[%clk 0:00:58.1]} 51... Ra2
{[%clk 0:00:21.3]} 0-1

[Event "GrandPrix_29.05"]
[Site "Chess.com"]
[Date "2020.05.29"]
[Round "2"]
[White "hubertsmazak"]
[Black "GM_Levan_Pantsulaia"]
[Result "0-1"]
[WhiteElo "2244"]
[BlackElo "2708"]
[TimeControl "600+2"]
[EndTime "9:56:47 PDT"]
[Termination "GM_Levan_Pantsulaia won by resignation"]

1. d4 {[%clk 0:10:01.9]} 1... Nf6 {[%clk 0:10:00.4]} 2. c4 {[%clk 0:10:01.7]}
2... c5 {[%clk 0:10:01.4]} 3. d5 {[%clk 0:10:00.6]} 3... g6 {[%clk 0:10:02.1]}
4. Nc3 {[%clk 0:09:58.7]} 4... Bg7 {[%clk 0:10:03.6]} 5. e4 {[%clk 0:09:59]}
5... O-O {[%clk 0:10:04]} 6. Bd3 {[%clk 0:09:59.8]} 6... e6 {[%clk 0:09:59]} 7.
Nge2 {[%clk 0:09:58]} 7... exd5 {[%clk 0:09:59.8]} 8. exd5 {[%clk 0:09:59.1]}
8... d6 {[%clk 0:09:59.4]} 9. h3 {[%clk 0:09:38.2]} 9... Nfd7 {[%clk 0:09:48.3]}
10. Bc2 {[%clk 0:09:21.9]} 10... Qh4 {[%clk 0:08:59.4]} 11. b3 {[%clk
0:08:47.8]} 11... b5 {[%clk 0:08:57.1]} 12. cxb5 {[%clk 0:08:26.3]} 12... a6
{[%clk 0:08:56.7]} 13. b6 {[%clk 0:07:53.5]} 13... Nxb6 {[%clk 0:08:41.7]} 14.
O-O {[%clk 0:07:19.3]} 14... Re8 {[%clk 0:08:24.4]} 15. Rb1 {[%clk 0:07:05.4]}
15... N8d7 {[%clk 0:07:34.6]} 16. Be3 {[%clk 0:05:59.4]} 16... Ne5 {[%clk
0:07:20.1]} 17. Ne4 {[%clk 0:05:15]} 17... Qe7 {[%clk 0:05:35]} 18. Bg5 {[%clk
0:04:47.4]} 18... f6 {[%clk 0:05:34.8]} 19. Bh4 {[%clk 0:04:29.2]} 19... g5
{[%clk 0:05:34.5]} 20. Bg3 {[%clk 0:04:21.4]} 20... f5 {[%clk 0:05:35.2]} 21.
Bxe5 {[%clk 0:03:45.5]} 21... Qxe5 {[%clk 0:05:09.4]} 22. N4c3 {[%clk
0:03:41.1]} 22... Qf6 {[%clk 0:04:55.5]} 23. Qd3 {[%clk 0:03:37.6]} 23... Ra7
{[%clk 0:04:21.1]} 24. f4 {[%clk 0:03:32.8]} 24... Rae7 {[%clk 0:04:07.5]} 25.
Rf3 {[%clk 0:02:53]} 25... gxf4 {[%clk 0:03:13.8]} 26. Nxf4 {[%clk 0:02:42.7]}
26... Qd4+ {[%clk 0:03:14.2]} 27. Kh2 {[%clk 0:02:24.6]} 27... Re3 {[%clk
0:02:51.8]} 28. Qxd4 {[%clk 0:01:41.2]} 28... Bxd4 {[%clk 0:02:50.1]} 29. Nce2
{[%clk 0:01:07.3]} 29... Rxe2 {[%clk 0:02:40.8]} 30. Nxe2 {[%clk 0:01:09.2]}
30... Rxe2 {[%clk 0:02:41.8]} 31. Bxf5 {[%clk 0:01:10.2]} 31... Be5+ {[%clk
0:02:37.4]} 32. Kg1 {[%clk 0:01:06.7]} 32... Bxf5 {[%clk 0:02:37.5]} 33. Rxf5
{[%clk 0:01:08.6]} 33... Nxd5 {[%clk 0:02:36.7]} 34. Rbf1 {[%clk 0:00:56.7]}
34... h6 {[%clk 0:02:09.9]} 35. Rf8+ {[%clk 0:00:42.9]} 35... Kg7 {[%clk
0:02:08]} 36. R1f7+ {[%clk 0:00:43.9]} 36... Kg6 {[%clk 0:02:07.7]} 37. Rd7
{[%clk 0:00:42.1]} 37... Nf6 {[%clk 0:01:50.1]} 38. Ra7 {[%clk 0:00:42.9]} 38...
Rxa2 {[%clk 0:01:50.1]} 39. g4 {[%clk 0:00:43.2]} 39... Kg5 {[%clk 0:01:47.1]}
40. Raf7 {[%clk 0:00:37.6]} 40... Ne4 {[%clk 0:01:21.9]} 41. Rf3 {[%clk
0:00:26.6]} 41... Kh4 {[%clk 0:01:02.5]} 42. R8f5 {[%clk 0:00:20.9]} 42... Ng5
{[%clk 0:00:59.7]} 43. Rd3 {[%clk 0:00:18.7]} 43... Nxh3+ {[%clk 0:00:57.2]} 44.
Kh1 {[%clk 0:00:20.1]} 44... Nf2+ {[%clk 0:00:56.1]} 45. Rxf2 {[%clk 0:00:17.1]}
45... Rxf2 {[%clk 0:00:58]} 46. b4 {[%clk 0:00:18.6]} 46... cxb4 {[%clk
0:00:57.5]} 47. g5 {[%clk 0:00:19.8]} 47... hxg5 {[%clk 0:00:56.9]} 48. Rh3+
{[%clk 0:00:17.6]} 48... Kxh3 {[%clk 0:00:57]} 0-1